bitfinex-derivatives/quotes_BNBF0:USTF0_20250425
["timestamp","ask_amount","ask_price","bid_price","bid_amount"]
[1745545293445,1.12845245,603.15,602.31,1.0564898]
[1745545293645,1.12845245,603.14,602.32,0.30465398]
[1745545294451,1.12845245,603.13,602.32,0.30465398]
[1745545295052,1.12845245,603.12,602.32,0.30465398]
[1745545295654,1.25637758,604.04,602.32,0.30465398]
[1745545295855,1.12650806,603.11,602.32,0.30465398]
[1745545296048,1.12650806,603.11,602.33,0.30465398]
[1745545296252,1.12650806,603.1,602.3,0.30465398]
[1745545296552,1.12650806,603.09,602.31,0.30465398]
[1745545296855,1.12650806,603.09,602.32,0.30465398]
[1745545297054,1.12650806,603.09,602.3,0.30465398]
[1745545297255,1.12650806,603.08,602.3,0.30465398]
[1745545297853,1.12650806,603.07,602.3,0.30465398]
[1745545298153,1.12650806,603.06,602.3,0.30465398]
[1745545298654,1.12650806,603.05,602.3,0.30465398]
[1745545299354,1.12650806,603.04,602.3,0.30465398]
[1745545299756,1.12650806,603.03,602.31,0.30465446]
[1745545299954,1.12650806,603.03,602.3,0.30465446]
[1745545300255,1.12650806,603.02,602.31,0.30465446]
[1745545300451,1.12650806,603.01,602.32,0.30465446]
[1745545300649,1.12650806,603.01,602.3,0.30465446]
[1745545300851,1.12650806,603.01,602.31,0.30465446]
[1745545301048,1.12650806,603.0,602.3,0.30465446]
[1745545301550,1.12650806,602.99,602.31,0.30465446]
[1745545301749,1.12650806,602.99,602.16,1.0564898]
[1745545301950,1.12650806,602.99,602.17,0.30465272]
[1745545302256,1.12650806,602.98,602.17,0.30465272]
[1745545302455,1.12650806,602.97,602.17,0.30465272]
[1745545302858,1.12650806,602.96,602.16,1.0564898]
[1745545303049,1.12650806,602.96,602.17,0.30465282]
[1745545303251,1.12650806,602.95,602.17,0.30465282]
[1745545303556,1.12650806,602.94,602.17,0.30465282]
[1745545304257,1.12650806,602.93,602.17,0.30465282]
[1745545304553,1.12650806,602.93,602.18,0.30465283]
[1745545304757,1.25637758,604.35,602.17,0.30465283]
[1745545304758,1.12650806,602.92,602.17,0.30465283]
[1745545304952,1.12650806,602.92,602.18,0.30465283]
[1745545305151,1.12650806,602.91,602.19,0.30465283]
[1745545305455,1.12650806,602.91,602.2,0.30465283]
[1745545305657,1.25637758,604.35,602.17,0.30465283]
[1745545305658,1.12650806,602.9,602.17,0.30465283]
[1745545306058,1.12650806,602.89,602.17,0.30465283]
[1745545306358,1.12650806,602.88,602.17,0.30465283]
[1745545306756,1.12650806,602.88,602.17,1.36114263]
[1745545306958,1.12650806,602.87,602.18,0.30465283]
[1745545307457,1.12650806,602.86,602.17,1.0564898]
[1745545307657,1.12650806,602.86,602.18,0.30465585]
[1745545308058,1.12650806,602.85,602.18,0.30465585]
[1745545308457,1.12650806,602.84,602.18,0.30465585]
[1745545308854,1.12650806,602.83,602.18,0.30465585]
[1745545309359,1.12650806,602.82,602.18,0.30465585]
[1745545309954,1.12650806,602.81,602.18,0.30465585]
[1745545310359,1.12650806,602.8,602.16,0.30465585]
[1745545310561,1.12650806,602.79,602.17,0.30465585]
[1745545310760,1.12650806,602.79,602.15,1.0564898]
[1745545310761,1.12650806,602.79,602.16,0.30465585]
[1745545310961,1.12650806,602.79,602.17,0.30465585]
[1745545311164,1.12650806,602.78,602.16,0.30465585]
[1745545311661,1.12650806,602.77,602.16,0.30465585]
[1745545312060,1.12650806,602.76,602.16,0.30465585]
[1745545312658,1.12650806,602.75,602.16,0.30465585]
[1745545313364,1.12650806,602.74,602.28,1.0564898]
[1745545313562,1.12650806,602.74,602.29,0.30465585]
[1745545313961,1.12650806,602.73,602.29,0.30465585]
[1745545314465,1.12650806,602.72,602.29,0.30465585]
[1745545315068,1.12650806,602.71,602.29,0.30465585]
[1745545315369,1.12650806,602.7,602.28,1.0564898]
[1745545315668,1.12650806,602.7,602.29,0.30465188]
[1745545316168,1.12650806,602.69,602.29,0.30465188]
[1745545316365,1.12650806,602.69,602.3,1.0564898]
[1745545316669,1.12650806,602.68,602.31,0.30465188]
[1745545317065,1.12650806,602.67,602.32,0.30465472]
[1745545317264,1.12650806,602.67,602.31,0.30465472]
[1745545317468,1.12650806,602.66,602.3,1.0564898]
[1745545317669,1.12650806,602.65,602.3,1.0564898]
[1745545318165,1.25637758,604.09,602.3,1.0564898]
[1745545318369,1.25637758,604.09,602.31,0.30465362]
[1745545318771,1.25637758,603.99,602.34,1.0564898]
[1745545318971,1.25637758,603.99,602.35,0.30465351]
[1745545319271,1.41690946,603.98,602.35,0.30465351]
[1745545319466,1.12827087,603.97,602.35,0.30465351]
[1745545319971,1.12827087,603.96,602.35,0.30465351]
[1745545320270,1.12827087,603.95,602.35,0.30465351]
[1745545320472,1.12827087,603.95,602.36,0.30465351]
[1745545320666,1.12827087,603.94,602.35,0.30465351]
[1745545321371,1.12827087,603.93,602.34,1.0564898]
[1745545321870,1.12827087,603.92,602.34,1.0564898]
[1745545322271,1.12827087,603.92,602.35,0.30465216]
[1745545322469,1.12827087,603.91,602.34,1.0564898]
[1745545322774,1.12827087,603.9,602.34,1.0564898]
[1745545323076,1.12827087,603.89,602.34,1.0564898]
[1745545323277,1.12827087,603.89,602.35,0.30465162]
[1745545323475,1.12827087,603.88,602.35,0.30465162]
[1745545323979,1.12827087,603.87,602.36,0.30465162]
[1745545324277,1.4169346,603.87,602.37,0.30465162]
[1745545324577,1.12827087,603.86,602.38,0.30465162]
[1745545324775,1.12827087,603.86,602.25,0.30465162]
[1745545324977,1.12827087,603.85,602.25,0.30465162]
[1745545325372,1.12827087,603.84,602.27,1.0564898]
[1745545325571,1.12827087,603.84,602.28,0.30465162]
[1745545325776,1.12827087,603.83,602.28,0.30465162]
[1745545326478,1.12827087,603.82,602.28,0.30465162]
[1745545327077,1.12827087,603.82,602.28,1.56065162]
[1745545327276,1.41694298,603.81,602.28,1.56065162]
[1745545327878,1.12827087,603.8,602.28,1.56065162]
[1745545328680,1.12827087,603.79,602.28,1.56065162]
[1745545328876,1.12827087,603.79,602.29,0.30465162]
[1745545329281,1.12827087,603.78,602.29,0.30465162]
[1745545330075,1.12827087,603.77,602.29,0.30465162]
[1745545330477,1.12827087,603.77,602.3,0.30466481]
[1745545330679,1.12827087,603.77,602.28,1.256]
[1745545330878,1.12827087,603.77,602.29,0.30467051]
[1745545331073,1.12827087,603.76,602.29,0.30467051]
[1745545331881,1.12827087,603.75,602.29,0.30467051]
[1745545332376,1.12827087,603.74,602.29,0.30467051]
[1745545333185,1.12827087,603.73,602.29,0.30467051]
[1745545333685,1.12827087,603.72,602.29,0.30467051]
[1745545333986,1.12827087,603.71,602.29,0.30467051]
[1745545334787,1.12827087,603.7,602.29,0.30467051]
[1745545335584,1.12827087,603.69,602.29,0.30467051]
[1745545336286,1.12827087,603.68,602.29,0.30467051]
[1745545336788,1.12827087,603.67,602.3,0.30466344]
[1745545337587,1.12827087,603.66,602.3,0.30466344]
[1745545338181,1.12827087,603.66,602.29,0.863]
[1745545338384,1.12827087,603.65,602.31,0.3046607]
[1745545338583,1.12827087,603.65,602.32,0.3046607]
[1745545338780,1.12827087,603.64,602.3,0.3046607]
[1745545338984,1.12827087,603.64,602.31,0.3046607]
[1745545339181,1.12827087,603.64,602.3,0.3046607]
[1745545339381,1.12827087,603.64,602.31,0.3046607]
[1745545339588,1.12827087,603.63,602.32,0.3046607]
[1745545339792,1.12827087,603.62,602.33,0.30465566]
[1745545340086,1.12827087,603.62,602.34,0.30465566]
[1745545340286,1.12827087,603.62,602.3,0.30465566]
[1745545340481,1.12827087,603.61,602.31,0.30465566]
[1745545340685,1.12827087,603.6,602.32,0.30465566]
[1745545340985,1.12827087,603.6,602.34,1.0564898]
[1745545341185,1.12827087,603.6,602.35,0.30465566]
[1745545341586,1.12827087,603.59,602.35,0.30465566]
[1745545342187,1.12827087,603.58,602.35,0.30465566]
[1745545342486,1.12827087,603.57,602.35,0.30465566]
[1745545342786,1.12827087,603.57,602.34,1.0564898]
[1745545342987,1.12827087,603.57,602.35,0.30465479]
[1745545343188,1.12827087,603.57,602.36,1.0564898]
[1745545343488,1.12827087,603.56,602.37,0.30465479]
[1745545343889,1.12827087,603.55,602.37,0.30465479]
[1745545344087,1.12827087,603.54,602.37,0.30465479]
[1745545344288,1.12827087,603.53,602.37,0.30465479]
[1745545344789,1.12827087,603.52,602.37,0.30465479]
[1745545345186,1.12827087,603.51,602.37,0.30465479]
[1745545345387,1.12827087,603.5,602.37,0.30465479]
[1745545345686,1.12827087,603.5,602.38,0.951]
[1745545345989,1.12827087,603.49,602.38,0.951]
[1745545346189,1.12827087,603.48,602.38,0.951]
[1745545346789,1.12827087,603.47,602.38,0.951]
[1745545347189,1.12827087,603.46,602.38,0.951]
[1745545347591,1.12827087,603.45,602.38,0.951]
[1745545348487,1.25637758,604.28,602.38,0.951]
[1745545348488,1.12827087,603.44,602.38,0.951]
[1745545348995,1.12827087,603.43,602.38,0.951]
[1745545349295,1.12827087,603.42,602.38,0.951]
[1745545349896,1.12827087,603.41,602.38,0.951]
[1745545350793,1.12827087,603.4,602.38,0.951]
[1745545351293,1.12827087,603.39,602.38,0.951]
[1745545351996,1.12827087,603.38,602.38,0.951]
[1745545352495,1.12827087,603.37,602.38,0.951]
[1745545352896,1.12827087,603.37,602.39,0.798]
[1745545353194,1.12827087,603.36,602.39,0.798]
[1745545353395,1.12827087,603.35,602.39,0.798]
[1745545353793,1.12827087,603.34,602.39,0.798]
[1745545354390,1.12827087,603.33,602.39,0.798]
[1745545354794,1.12827087,603.32,602.39,0.798]
[1745545355198,1.12827087,603.31,602.39,0.798]
[1745545355892,1.12827087,603.3,602.39,0.798]
[1745545356296,1.12827087,603.29,602.39,0.798]
[1745545356797,1.12827087,603.28,602.39,0.798]
[1745545357499,1.12827087,603.27,602.39,0.798]
[1745545358198,1.12827087,603.26,602.39,0.798]
[1745545358493,1.12827087,603.26,602.4,0.885]
[1745545358697,1.12827087,603.25,602.4,0.885]
[1745545359301,1.12827087,603.24,602.4,0.885]
[1745545359501,1.12827087,603.23,602.4,0.885]
[1745545359702,1.12827087,603.23,602.41,0.30466813]
[1745545360002,1.12827087,603.22,602.42,0.30466812]
[1745545360202,1.12827087,603.22,602.41,0.30466812]
[1745545360503,1.12827087,603.21,602.42,0.30466812]
[1745545360702,1.12827087,603.21,602.41,0.30466812]
[1745545360902,1.12827087,603.2,602.41,0.30466812]
[1745545361303,1.12827087,603.19,602.41,0.30466812]
[1745545361903,1.12827087,603.18,602.41,0.30466812]
[1745545362606,1.12827087,603.17,602.41,0.30466812]
[1745545362798,1.12827087,603.17,602.4,0.885]
[1745545363004,1.12827087,603.17,602.41,0.3046608]
[1745545363305,1.12827087,603.16,602.41,0.3046608]
[1745545363505,1.25637758,604.03,602.41,0.3046608]
[1745545363506,1.12827087,603.15,602.41,0.3046608]
[1745545363906,1.12827087,603.14,602.41,0.3046608]
[1745545364506,1.12827087,603.14,602.42,0.3046629]
[1745545364705,1.12827087,603.13,602.43,0.3046629]
[1745545364904,1.12827087,603.13,602.44,0.3046629]
[1745545365106,1.12827087,603.13,602.45,0.3046629]
[1745545365307,1.12827087,603.13,602.41,0.3046629]
[1745545365507,1.12827087,603.12,602.4,0.885]
[1745545365706,1.12827087,603.12,602.41,0.3046629]
[1745545365909,1.12827087,603.12,602.4,0.885]
[1745545366107,1.12827087,603.11,602.41,0.30466316]
[1745545366304,1.12827087,603.1,602.41,0.30466316]
[1745545366811,1.12827087,603.09,602.41,0.30466316]
[1745545367211,1.12827087,603.08,602.41,0.30466316]
[1745545367710,1.12827087,603.07,602.41,0.30466316]
[1745545368311,1.12827087,603.06,602.41,0.30466316]
[1745545368912,1.12827087,603.05,602.41,0.30466316]
[1745545369112,1.12827087,603.05,602.4,0.885]
[1745545369313,1.12827087,603.05,602.41,0.30466316]
[1745545369510,1.12827087,603.04,602.41,0.30466316]
[1745545369709,1.12827087,603.04,602.4,0.885]
[1745545370414,1.12827087,603.03,602.4,0.885]
[1745545370610,1.12827087,603.02,602.4,0.885]
[1745545371115,1.12827087,603.01,602.4,0.885]
[1745545371413,1.12827087,603.0,602.4,0.885]
[1745545371915,1.12827087,602.99,602.4,0.885]
[1745545372914,1.12827087,602.98,602.4,0.885]
[1745545373214,1.12827087,602.97,602.4,0.885]
[1745545373614,1.12827087,602.96,602.4,0.885]
[1745545374318,1.12827087,602.95,602.4,0.885]
[1745545374618,1.12827087,602.95,602.39,0.798]
[1745545374917,1.12827087,602.94,602.39,0.798]
[1745545375317,1.12827087,602.93,602.39,0.798]
[1745545375612,1.12827087,602.92,602.39,0.798]
[1745545375916,1.12827087,602.91,602.39,0.798]
[1745545376118,1.12827087,602.9,602.39,0.798]
[1745545376518,1.12827087,602.89,602.39,0.798]
[1745545377419,1.12827087,602.88,602.39,0.798]
[1745545377718,1.12827087,602.87,602.39,0.798]
[1745545378112,1.12827087,602.86,602.39,0.798]
[1745545378623,1.12827087,602.85,602.4,0.30461897]
[1745545378925,1.12827087,602.84,602.4,0.30461897]
[1745545379629,1.12827087,602.83,602.4,0.30461897]
[1745545380227,1.12827087,602.82,602.4,0.30461897]
[1745545381029,1.12827087,602.81,602.41,0.30461347]
[1745545381229,1.12827087,602.81,602.4,0.30461347]
[1745545381528,1.12827087,602.81,602.41,0.30461347]
[1745545381724,1.12827087,602.8,602.4,0.30461347]
[1745545382029,1.12827087,602.8,602.41,0.30461347]
[1745545382329,1.12827087,602.79,602.42,0.30459782]
[1745545382526,1.12827087,602.79,602.4,0.30459782]
[1745545382724,1.12827087,602.79,602.41,0.30459782]
[1745545382926,1.12827087,602.79,602.4,0.30459782]
[1745545383128,1.12827087,602.79,602.41,0.30459782]
[1745545383328,1.12827087,602.78,602.4,0.30459782]
[1745545383529,1.12827087,602.78,602.41,0.30459782]
[1745545383725,1.12827087,602.78,602.39,0.798]
[1745545383726,1.12827087,602.78,602.4,0.30459782]
[1745545383928,1.12827087,602.77,602.41,0.30459782]
[1745545384124,1.12827087,602.77,602.42,0.30459782]
[1745545384329,1.25637758,604.31,602.43,0.30459782]
[1745545384629,1.25637758,604.31,602.44,0.30459782]
[1745545384827,1.12720025,604.3,602.44,0.30459782]
[1745545385024,1.12720025,604.3,602.45,0.883]
[1745545385230,0.28855721,604.29,602.46,0.30458422]
[1745545385729,1.12720025,604.28,602.46,0.30458422]
[1745545386429,1.12720025,604.27,602.46,0.30458422]
[1745545386626,1.12720025,604.27,602.45,0.883]
[1745545386831,1.12720025,604.26,602.46,0.30458916]
[1745545387332,0.28855961,604.25,602.46,0.30458916]
[1745545387632,1.12720025,604.24,602.46,0.30458916]
[1745545388031,1.12720025,604.23,602.46,0.30458916]
[1745545388330,1.12720025,604.23,602.47,0.30458543]
[1745545388530,1.12720025,604.23,602.46,0.30458543]
[1745545388728,1.12720025,604.23,602.47,0.30458543]
[1745545388931,1.12720025,604.23,602.46,0.30458543]
[1745545389132,1.12720025,604.23,602.47,0.30458543]
[1745545389331,1.12720025,604.22,602.48,0.30458543]
[1745545389532,1.12720025,604.22,602.46,0.30458543]
[1745545389731,1.12720025,604.21,602.49,0.30458543]
[1745545389927,1.12720025,604.21,602.5,0.30458543]
[1745545390128,1.415779,604.2,602.46,0.30458543]
[1745545390432,1.415779,604.2,602.47,0.30460364]
[1745545390627,1.12720025,604.19,602.46,0.30460364]
[1745545390830,1.12720025,604.19,602.47,0.30460364]
[1745545391032,1.12720025,604.19,602.48,0.30460364]
[1745545391227,1.12720025,604.19,602.45,0.883]
[1745545391427,1.12720025,604.18,602.46,0.30460272]
[1745545391828,1.12720025,604.17,602.46,0.30460272]
[1745545392332,1.12720025,604.16,602.46,0.30460272]
[1745545392733,1.12720025,604.15,602.47,0.30459884]
[1745545392927,1.12720025,604.15,602.46,0.30459884]
[1745545393130,1.12720025,604.15,602.47,0.30459884]
[1745545393433,1.12720025,604.15,602.45,0.883]
[1745545393434,1.12720025,604.14,602.48,0.30459884]
[1745545393629,1.12720025,604.14,602.46,0.30459884]
[1745545393835,1.12720025,604.14,602.47,0.30459884]
[1745545394032,1.12720025,604.14,602.48,0.30459884]
[1745545394230,1.12720025,604.13,602.45,0.883]
[1745545394433,1.12720025,604.13,602.46,0.3045985]
[1745545394935,1.12720025,604.12,602.46,0.3045985]
[1745545395238,1.12720025,604.11,602.46,0.3045985]
[1745545395633,1.12720025,604.11,602.45,0.883]
[1745545395933,1.12720025,604.1,602.43,1.255]
[1745545396237,1.12720025,604.09,602.43,1.255]
[1745545396437,1.12720025,604.08,602.43,1.255]
[1745545397233,1.12720025,604.07,602.43,1.255]
[1745545397938,1.12720025,604.06,602.43,1.255]
[1745545398239,1.12720025,604.05,602.43,2.484]
[1745545398635,1.12720025,604.04,602.43,2.484]
[1745545399242,0.28861944,604.03,602.43,2.484]
[1745545399441,1.12720025,604.02,602.43,2.484]
[1745545400042,1.12720025,604.01,602.43,2.484]
[1745545400644,1.12720025,604.0,602.43,2.484]
[1745545401143,1.12720025,603.99,602.43,2.484]
[1745545401438,1.12720025,603.98,602.43,2.484]
[1745545402045,1.12720025,603.97,602.43,2.484]
[1745545402240,1.41583405,603.97,602.43,2.484]
[1745545402745,1.12720025,603.96,602.43,2.484]
[1745545403045,1.12720025,603.95,602.43,2.484]
[1745545403440,0.2886338,603.97,602.43,2.484]
[1745545403441,1.12720025,603.94,602.43,2.484]
[1745545404050,1.12720025,603.93,602.43,2.484]
[1745545404550,1.12720025,603.92,602.43,2.484]
[1745545405050,1.12720025,603.91,602.43,2.484]
[1745545405451,1.4158532,603.91,602.43,2.484]
[1745545405850,1.12720025,603.9,602.43,2.484]
[1745545406051,1.12720025,603.89,602.43,3.718]
[1745545406252,1.12720025,603.88,602.43,3.718]
[1745545406647,1.12720025,603.87,602.43,3.718]
[1745545408253,1.12720025,603.86,602.43,3.718]
[1745545408855,1.12720025,603.85,602.43,3.718]
[1745545409053,1.12720025,603.84,602.43,3.718]
[1745545409350,1.41586158,603.84,602.43,3.718]
[1745545409550,1.12720025,603.83,602.43,3.718]
[1745545409856,1.12720025,603.82,602.43,3.718]
[1745545410356,1.12720025,603.81,602.43,3.718]
[1745545410755,1.12720025,603.8,602.43,3.718]
[1745545410955,1.12720025,603.79,602.43,3.718]
[1745545411255,1.41586757,603.79,602.43,3.718]
[1745545412055,1.12720025,603.78,602.43,3.718]
[1745545412651,1.12720025,603.77,602.43,3.718]
[1745545413457,1.12720025,603.76,602.43,3.718]
[1745545413756,1.12720025,603.75,602.43,3.718]
[1745545414155,1.12720025,603.74,602.43,3.718]
[1745545414358,1.41588194,603.74,602.43,3.718]
[1745545415158,1.12720025,603.73,602.43,3.718]
[1745545415658,1.12720025,603.72,602.43,3.718]
[1745545416259,1.12720025,603.71,602.43,3.718]
[1745545416554,1.12720025,603.7,602.43,3.718]
[1745545417358,0.28869127,603.69,602.43,3.718]
[1745545417554,1.41589152,603.69,602.43,3.718]
[1745545417859,1.12720025,603.68,602.43,3.718]
[1745545418064,1.12720025,603.67,602.43,3.718]
[1745545418955,1.12720025,603.66,602.43,3.718]
[1745545419455,1.12720025,603.65,602.43,3.718]
[1745545419659,1.12720025,603.64,602.43,3.718]
[1745545420461,1.12720025,603.63,602.43,3.718]
[1745545421161,1.12720025,603.62,602.43,3.718]
[1745545421562,1.12720025,603.61,602.43,3.718]
[1745545422362,1.12720025,603.6,602.43,3.718]
[1745545422859,1.12720025,603.59,602.43,3.718]
[1745545423566,1.12720025,603.58,602.43,3.718]
[1745545423967,1.12720025,603.57,602.43,3.718]
[1745545424370,1.12720025,603.56,602.43,3.718]
[1745545424668,1.12720025,603.55,602.43,3.718]
[1745545425169,1.12720025,603.54,602.43,3.718]
[1745545426269,1.12720025,603.53,602.43,3.718]
[1745545426469,1.12720025,603.52,602.43,3.718]
[1745545426671,1.12720025,603.51,602.43,3.718]
[1745545426869,1.12720025,603.5,602.43,3.718]
[1745545427667,1.12720025,603.49,602.43,3.718]
[1745545427970,1.12720025,603.49,602.43,4.895]
[1745545428570,1.12720025,603.48,602.43,4.895]
[1745545428770,1.12720025,603.47,602.43,4.895]
[1745545429374,1.12720025,603.46,602.43,4.895]
[1745545429972,1.12720025,603.45,602.43,4.895]
[1745545430672,1.12720025,603.44,602.43,4.895]
[1745545430866,1.12720025,603.43,602.43,4.895]
[1745545431266,1.12720025,603.42,602.43,4.895]
[1745545431772,1.12720025,603.41,602.43,4.895]
[1745545432472,1.12720025,603.4,602.43,4.895]
[1745545432772,1.12720025,603.39,602.43,4.895]
[1745545433173,1.12720025,603.38,602.43,4.895]
[1745545433772,1.12720025,603.37,602.43,4.895]
[1745545434374,1.12720025,603.36,602.43,4.895]
[1745545434776,1.12720025,603.36,602.44,0.30467489]
[1745545434969,1.12720025,603.35,602.43,4.895]
[1745545435170,1.12720025,603.34,602.43,2.411]
[1745545435669,1.12720025,603.33,602.43,2.411]
[1745545435973,1.12720025,603.33,602.44,0.30467294]
[1745545436273,1.12720025,603.33,602.43,2.411]
[1745545436473,1.12720025,603.32,602.43,2.411]
[1745545436675,1.12720025,603.32,602.44,0.30466637]
[1745545436869,1.12720025,603.31,602.44,0.30466637]
[1745545437276,1.12720025,603.3,602.44,0.30466637]
[1745545437574,1.25637758,604.01,602.43,2.411]
[1745545437575,1.12720025,603.29,602.43,2.411]
[1745545438174,1.12720025,603.28,602.43,3.409]
[1745545438569,1.12720025,603.27,602.43,3.409]
[1745545438869,1.12720025,603.26,602.43,3.409]
[1745545439875,1.12720025,603.25,602.43,3.409]
[1745545440476,1.12720025,603.24,602.43,3.409]
[1745545441173,1.12720025,603.23,602.43,3.409]
[1745545441874,1.12720025,603.22,602.43,3.409]
[1745545442582,1.12720025,603.21,602.43,3.409]
[1745545442880,1.12720025,603.2,602.43,3.409]
[1745545443680,1.12720025,603.19,602.43,3.409]
[1745545444280,1.12720025,603.18,602.43,3.409]
[1745545444586,1.12720025,603.17,602.43,3.409]
[1745545445287,1.12720025,603.16,602.43,3.409]
[1745545446088,1.12720025,603.15,602.43,3.409]
[1745545446688,1.12720025,603.14,602.43,3.409]
[1745545447188,1.12720025,603.13,602.43,3.409]
[1745545447488,1.12720025,603.12,602.44,0.30467426]
[1745545447688,1.12720025,603.12,602.45,0.30467426]
[1745545447890,1.12720025,603.11,602.44,0.30467426]
[1745545448189,1.12720025,603.11,602.45,0.30467426]
[1745545448385,1.12720025,603.1,602.44,0.30467426]
[1745545448689,1.12720025,603.1,602.45,0.30467426]
[1745545448890,1.12720025,603.1,602.44,0.30467426]
[1745545449190,1.12720025,603.09,602.45,0.30467426]
[1745545449391,1.12720025,603.09,602.46,0.30467426]
[1745545449686,1.12720025,603.08,602.47,0.30467426]
[1745545449890,1.12720025,603.07,602.44,0.30467426]
[1745545450090,1.12720025,603.06,602.43,1.177]
[1745545450288,1.12720025,603.06,602.44,0.30466406]
[1745545450591,1.12720025,603.05,602.44,0.30466406]
[1745545450784,1.12720025,603.05,602.43,1.177]
[1745545451391,1.12720025,603.04,602.43,1.177]
[1745545451591,1.12720025,603.04,602.3,1.0564898]
[1745545451791,1.12720025,603.03,602.31,0.30466455]
[1745545452492,1.12720025,603.02,602.31,0.30466455]
[1745545452791,1.12720025,603.01,602.31,0.30466455]
[1745545453692,1.12720025,603.0,602.31,0.30466455]
[1745545453992,1.12720025,602.99,602.32,0.30466481]
[1745545454293,1.12720025,602.99,602.33,0.30466481]
[1745545454493,1.12720025,602.99,602.31,0.30466481]
[1745545454693,1.12720025,602.98,602.32,0.30466481]
[1745545454893,1.12720025,602.97,602.31,0.30466481]
[1745545455089,1.12720025,602.97,602.32,0.30466481]
[1745545455294,1.12720025,602.97,602.23,0.30466481]
[1745545455593,1.12720025,602.96,602.24,0.30466481]
[1745545455794,1.12720025,602.96,602.25,0.30466481]
[1745545455990,1.12720025,602.95,602.26,0.30466481]
[1745545456195,1.12720025,602.95,602.23,0.30466481]
[1745545456389,1.12720025,602.95,602.24,0.30466481]
[1745545456595,1.12720025,602.94,602.22,1.0564898]
[1745545457297,1.12720025,602.94,602.23,0.30466455]
[1745545457798,1.12720025,602.93,602.23,0.30466455]
[1745545458098,1.12720025,602.92,602.23,0.30466455]
[1745545458299,1.12720025,602.91,602.23,0.30466455]
[1745545459202,1.12720025,602.9,602.23,0.30466455]
[1745545459499,1.12720025,602.9,602.23,1.36115435]
[1745545459700,1.12720025,602.9,602.24,0.30466455]
[1745545459897,1.12720025,602.89,602.24,0.30466455]
[1745545460299,1.12720025,602.88,602.24,0.30466455]
[1745545460601,1.12720025,602.87,602.24,0.30466455]
[1745545460803,1.12720025,602.86,602.24,0.30466455]
[1745545461195,1.12720025,602.86,602.17,0.30466455]
[1745545461397,1.12720025,602.85,602.18,0.30466455]
[1745545461600,1.12720025,602.85,602.17,0.30466455]
[1745545461796,1.12720025,602.84,602.18,0.30466455]
[1745545461997,1.12720025,602.83,602.17,0.30466455]
[1745545462201,1.12720025,602.83,602.16,1.0564898]
[1745545462202,1.12720025,602.83,602.18,0.30466455]
[1745545462402,1.12720025,602.83,602.16,1.0564898]
[1745545462403,1.12720025,602.82,602.17,0.30466455]
[1745545462704,1.12720025,602.81,602.18,0.30466455]
[1745545462902,1.12720025,602.81,602.17,0.30466455]
[1745545463102,1.12720025,602.8,602.17,0.30466455]
[1745545463902,1.12720025,602.79,602.17,0.30466455]
[1745545464104,1.12720025,602.79,602.2,1.0564898]
[1745545464307,1.12720025,602.78,602.21,0.30466455]
[1745545464803,1.12720025,602.77,602.2,1.0564898]
[1745545465104,1.12720025,602.77,602.21,0.30466477]
[1745545465502,1.12720025,602.76,602.21,0.30466477]
[1745545466399,1.12720025,602.75,602.21,0.30466477]
[1745545467106,1.12720025,602.74,602.21,0.30466477]
[1745545467301,1.12720025,602.73,602.21,0.30466477]
[1745545467506,1.12720025,602.73,602.21,1.36115457]
[1745545467806,1.12720025,602.72,602.22,0.30466477]
[1745545468006,1.12720025,602.72,602.23,0.30466451]
[1745545468206,1.12720025,602.72,602.24,0.30466451]
[1745545468506,1.12720025,602.71,602.25,0.30466451]
[1745545468703,1.12720025,602.71,602.26,0.30466451]
[1745545468907,1.12720025,602.71,602.27,0.30466451]
[1745545469107,1.12720025,602.7,602.22,0.30466451]
[1745545469308,1.12720025,602.69,602.23,0.30466451]
[1745545469609,1.12720025,602.68,602.24,0.30466456]
[1745545469806,1.12720025,602.68,602.22,0.30466456]
[1745545470001,1.12720025,602.67,602.23,0.30466456]
[1745545470203,1.12720025,602.67,602.22,0.30466456]
[1745545470407,1.12720025,602.67,602.23,0.30466456]
[1745545470607,1.12720025,602.67,602.22,0.30466456]
[1745545470807,1.12720025,602.67,602.04,0.28881705]
[1745545470808,1.12720025,602.66,602.24,1.0564898]
[1745545471207,1.12720025,602.65,602.25,0.30463996]
[1745545471407,1.25637758,604.18,602.25,0.30463996]
[1745545472208,1.41678205,604.17,602.25,0.30463996]
[1745545472707,1.12816381,604.16,602.25,0.30463996]
[1745545473008,0.28861824,604.17,602.25,0.30463996]
[1745545473009,1.12816381,604.15,602.25,0.30463996]
[1745545473207,1.12816381,604.15,602.27,1.0564898]
[1745545473405,1.12816381,604.15,602.28,0.30463996]